[Event "Early-Titled-Tuesday-Blitz-January-23-2024"]
[Site "Chess.com"]
[Date "2024.01.23"]
[Round "2"]
[White "supereagles1201"]
[Black "Egor_Koshulyan"]
[Result "0-1"]
[WhiteElo "2347"]
[BlackElo "2695"]
[TimeControl "180+1"]
[EndTime "8:19:09 PST"]
[Termination "Egor_Koshulyan won by checkmate"]

1. d4 {[%clk 0:03:00.9]} 1... Nf6 {[%clk 0:02:58.4]} 2. Nf3 {[%clk 0:03:00.8]}
2... d5 {[%clk 0:02:57.3]} 3. c3 {[%clk 0:03:00.1]} 3... Bf5 {[%clk 0:02:39.7]}
4. Qb3 {[%clk 0:02:58.9]} 4... Qc8 {[%clk 0:02:37.8]} 5. c4 {[%clk 0:02:59.4]}
5... e6 {[%clk 0:02:35]} 6. Nc3 {[%clk 0:02:54.5]} 6... c6 {[%clk 0:02:26.8]} 7.
cxd5 {[%clk 0:02:49]} 7... exd5 {[%clk 0:02:25.7]} 8. Bf4 {[%clk 0:02:49.5]}
8... Be7 {[%clk 0:02:24.4]} 9. h3 {[%clk 0:02:49]} 9... O-O {[%clk 0:02:24.5]}
10. e3 {[%clk 0:02:49.5]} 10... Nbd7 {[%clk 0:02:18.2]} 11. Be2 {[%clk
0:02:46.3]} 11... Ne4 {[%clk 0:02:12]} 12. g4 {[%clk 0:02:43.2]} 12... Bg6
{[%clk 0:02:08.8]} 13. h4 {[%clk 0:02:40.7]} 13... Nxc3 {[%clk 0:02:06.3]} 14.
bxc3 {[%clk 0:02:33.1]} 14... Be4 {[%clk 0:02:06.3]} 15. g5 {[%clk 0:02:22.9]}
15... c5 {[%clk 0:02:00]} 16. Rg1 {[%clk 0:02:21.2]} 16... cxd4 {[%clk
0:01:49.1]} 17. cxd4 {[%clk 0:02:20.6]} 17... a5 {[%clk 0:01:42.4]} 18. a3
{[%clk 0:02:18.5]} 18... Qc6 {[%clk 0:01:13.7]} 19. Nd2 {[%clk 0:02:13.2]} 19...
Bf5 {[%clk 0:01:08.1]} 20. Bg4 {[%clk 0:02:05.9]} 20... Bxg4 {[%clk 0:01:05.6]}
21. Rxg4 {[%clk 0:02:06.8]} 21... Rfc8 {[%clk 0:01:04.8]} 22. Ke2 {[%clk
0:02:03]} 22... a4 {[%clk 0:01:02.7]} 23. Qd3 {[%clk 0:01:59.8]} 23... Qc3
{[%clk 0:00:59.5]} 24. Rgg1 {[%clk 0:01:58.7]} 24... Rc6 {[%clk 0:00:55.9]} 25.
Rgc1 {[%clk 0:01:46.9]} 25... Qxd3+ {[%clk 0:00:50.7]} 26. Kxd3 {[%clk
0:01:46.4]} 26... Rxc1 {[%clk 0:00:51.3]} 27. Rxc1 {[%clk 0:01:46.8]} 27... Bxa3
{[%clk 0:00:52]} 28. Rc7 {[%clk 0:01:44.5]} 28... Nf8 {[%clk 0:00:49.3]} 29.
Rxb7 {[%clk 0:01:44.4]} 29... Ne6 {[%clk 0:00:49.9]} 30. Rb8+ {[%clk 0:01:40.7]}
30... Rxb8 {[%clk 0:00:47.5]} 31. Bxb8 {[%clk 0:01:41.6]} 31... Bb4 {[%clk
0:00:44.9]} 32. f4 {[%clk 0:01:25.6]} 32... g6 {[%clk 0:00:40.7]} 33. Kc2 {[%clk
0:01:17.1]} 33... Ng7 {[%clk 0:00:39.2]} 34. e4 {[%clk 0:00:41.6]} 34... a3
{[%clk 0:00:26.4]} 35. Nb3 {[%clk 0:00:38.4]} 35... dxe4 {[%clk 0:00:26.2]} 36.
d5 {[%clk 0:00:37.7]} 36... Nf5 {[%clk 0:00:26.3]} 37. Be5 {[%clk 0:00:26.4]}
37... Ne3+ {[%clk 0:00:24.3]} 38. Kb1 {[%clk 0:00:23.4]} 38... Nxd5 {[%clk
0:00:24.7]} 39. Ka2 {[%clk 0:00:21.7]} 39... e3 {[%clk 0:00:25]} 40. Nd4 {[%clk
0:00:20.5]} 40... Nc3+ {[%clk 0:00:22.5]} 41. Kb3 {[%clk 0:00:19.3]} 41... a2
{[%clk 0:00:21.7]} 42. Nc2 {[%clk 0:00:19.8]} 42... e2 {[%clk 0:00:18.7]} 43.
Kb2 {[%clk 0:00:16.6]} 43... a1=Q+ {[%clk 0:00:14.4]} 44. Kxa1 {[%clk 0:00:15]}
44... Ne4 {[%clk 0:00:14.4]} 45. Kb2 {[%clk 0:00:12.7]} 45... e1=Q {[%clk
0:00:14.9]} 46. Nxe1 {[%clk 0:00:12.5]} 46... Bxe1 {[%clk 0:00:15.8]} 47. Kc2
{[%clk 0:00:12]} 47... Bxh4 {[%clk 0:00:15.7]} 48. Kd3 {[%clk 0:00:12.6]} 48...
Ng3 {[%clk 0:00:16.3]} 49. Ke3 {[%clk 0:00:11.9]} 49... Nf5+ {[%clk 0:00:17.2]}
50. Kf3 {[%clk 0:00:12]} 50... Be1 {[%clk 0:00:17.8]} 51. Kg4 {[%clk 0:00:11.8]}
51... Bb4 {[%clk 0:00:17.9]} 52. Bf6 {[%clk 0:00:12]} 52... Bf8 {[%clk
0:00:18.5]} 53. Be5 {[%clk 0:00:12.3]} 53... Bg7 {[%clk 0:00:19.1]} 54. Bc7
{[%clk 0:00:12.4]} 54... Kf8 {[%clk 0:00:18.4]} 55. Bb8 {[%clk 0:00:11.3]} 55...
Ke7 {[%clk 0:00:19]} 56. Ba7 {[%clk 0:00:11.8]} 56... Ke6 {[%clk 0:00:19.6]} 57.
Bc5 {[%clk 0:00:11.9]} 57... Kd5 {[%clk 0:00:20]} 58. Bb4 {[%clk 0:00:12]} 58...
Ke4 {[%clk 0:00:20.4]} 59. Bd2 {[%clk 0:00:11.6]} 59... Bd4 {[%clk 0:00:20.9]}
60. Bc1 {[%clk 0:00:09.9]} 60... Be3 {[%clk 0:00:21.4]} 61. Bb2 {[%clk
0:00:07.1]} 61... Bxf4 {[%clk 0:00:21.5]} 62. Bf6 {[%clk 0:00:07.4]} 62... Be3
{[%clk 0:00:21.6]} 63. Bd8 {[%clk 0:00:07.2]} 63... h5+ {[%clk 0:00:21]} 64.
gxh6 {[%clk 0:00:06.1]} 64... Bxh6 {[%clk 0:00:21.9]} 65. Bf6 {[%clk 0:00:04.8]}
65... Bg7 {[%clk 0:00:21.6]} 66. Bd8 {[%clk 0:00:04.4]} 66... Ne3+ {[%clk
0:00:18.7]} 67. Kg3 {[%clk 0:00:04.1]} 67... Be5+ {[%clk 0:00:17.4]} 68. Kf2
{[%clk 0:00:04.4]} 68... Ng4+ {[%clk 0:00:17.4]} 69. Kg2 {[%clk 0:00:03.5]}
69... f5 {[%clk 0:00:18]} 70. Kf1 {[%clk 0:00:03.5]} 70... f4 {[%clk 0:00:18.4]}
71. Bg5 {[%clk 0:00:03.5]} 71... f3 {[%clk 0:00:18.7]} 72. Bh4 {[%clk
0:00:03.8]} 72... Ne3+ {[%clk 0:00:16.4]} 73. Kf2 {[%clk 0:00:04.3]} 73... Bd4
{[%clk 0:00:16.7]} 74. Ke1 {[%clk 0:00:03.7]} 74... Ng2+ {[%clk 0:00:16.7]} 75.
Kf1 {[%clk 0:00:02.8]} 75... Nxh4 {[%clk 0:00:17.2]} 76. Ke1 {[%clk 0:00:03.2]}
76... f2+ {[%clk 0:00:17]} 77. Kf1 {[%clk 0:00:04.1]} 77... Nf5 {[%clk
0:00:17.1]} 78. Ke2 {[%clk 0:00:04.5]} 78... Ng3+ {[%clk 0:00:16.7]} 79. Kd2
{[%clk 0:00:05.4]} 79... f1=Q {[%clk 0:00:16.7]} 80. Kc2 {[%clk 0:00:06]} 80...
Qd3+ {[%clk 0:00:17]} 81. Kc1 {[%clk 0:00:05.5]} 81... Ne2# {[%clk 0:00:17.1]}
0-1

[Event "Early-Titled-Tuesday-Blitz-January-23-2024"]
[Site "Chess.com"]
[Date "2024.01.23"]
[Round "2"]
[White "baki83"]
[Black "Squirlolz"]
[Result "1-0"]
[WhiteElo "2853"]
[BlackElo "2568"]
[TimeControl "180+1"]
[EndTime "8:19:10 PST"]
[Termination "baki83 won by checkmate"]

1. e4 {[%clk 0:03:00.9]} 1... d6 {[%clk 0:02:59.3]} 2. d4 {[%clk 0:03:00.8]}
2... Nf6 {[%clk 0:02:59.4]} 3. Nc3 {[%clk 0:03:01.2]} 3... c6 {[%clk 0:03:00]}
4. h3 {[%clk 0:03:01.3]} 4... Qa5 {[%clk 0:02:55]} 5. Bd3 {[%clk 0:02:52.2]}
5... e5 {[%clk 0:02:54.8]} 6. Nf3 {[%clk 0:02:50.8]} 6... g6 {[%clk 0:02:54.6]}
7. O-O {[%clk 0:02:47.7]} 7... Bg7 {[%clk 0:02:54.5]} 8. Ne2 {[%clk 0:02:46.5]}
8... exd4 {[%clk 0:02:53.4]} 9. Nexd4 {[%clk 0:02:43.8]} 9... O-O {[%clk
0:02:53.5]} 10. Bf4 {[%clk 0:02:43]} 10... Re8 {[%clk 0:02:36.3]} 11. Re1 {[%clk
0:02:41.9]} 11... Qb6 {[%clk 0:02:28.9]} 12. Bxd6 {[%clk 0:02:30.3]} 12... c5
{[%clk 0:02:04.3]} 13. Nb5 {[%clk 0:02:23.5]} 13... a6 {[%clk 0:02:04.6]} 14.
Bc7 {[%clk 0:01:57.1]} 14... Qc6 {[%clk 0:02:01.4]} 15. Bxb8 {[%clk 0:01:49.2]}
15... Rxb8 {[%clk 0:01:45.7]} 16. Na7 {[%clk 0:01:47.5]} 16... Qc7 {[%clk
0:01:27.2]} 17. Nxc8 {[%clk 0:01:46.4]} 17... Rbxc8 {[%clk 0:01:28.1]} 18. e5
{[%clk 0:01:41.4]} 18... Nd7 {[%clk 0:01:23.3]} 19. e6 {[%clk 0:01:41.1]} 19...
fxe6 {[%clk 0:01:16.1]} 20. Bc4 {[%clk 0:01:33.2]} 20... Nf8 {[%clk 0:00:51.9]}
21. c3 {[%clk 0:01:23.5]} 21... b5 {[%clk 0:00:50.7]} 22. Bd3 {[%clk 0:01:22.2]}
22... Rcd8 {[%clk 0:00:49.7]} 23. Qc2 {[%clk 0:01:22.1]} 23... c4 {[%clk
0:00:47.8]} 24. Be4 {[%clk 0:01:22.2]} 24... e5 {[%clk 0:00:46.1]} 25. Rad1
{[%clk 0:01:10.6]} 25... Ne6 {[%clk 0:00:43.1]} 26. Bd5 {[%clk 0:01:09.8]} 26...
Kh8 {[%clk 0:00:43]} 27. Bxe6 {[%clk 0:01:09.5]} 27... Rxe6 {[%clk 0:00:42.1]}
28. Ng5 {[%clk 0:01:05.7]} 28... Red6 {[%clk 0:00:35.9]} 29. Rxd6 {[%clk
0:01:04.8]} 29... Rxd6 {[%clk 0:00:35.6]} 30. Rd1 {[%clk 0:01:01.3]} 30... Rxd1+
{[%clk 0:00:28.1]} 31. Qxd1 {[%clk 0:01:01.2]} 31... h6 {[%clk 0:00:28.6]} 32.
Ne4 {[%clk 0:00:56.7]} 32... Qc6 {[%clk 0:00:28.8]} 33. Qd8+ {[%clk 0:00:52.5]}
33... Kh7 {[%clk 0:00:29]} 34. f3 {[%clk 0:00:51.9]} 34... a5 {[%clk 0:00:25.4]}
35. a3 {[%clk 0:00:50.3]} 35... b4 {[%clk 0:00:24.2]} 36. axb4 {[%clk
0:00:49.4]} 36... axb4 {[%clk 0:00:25.1]} 37. cxb4 {[%clk 0:00:48.5]} 37... Qb7
{[%clk 0:00:21.5]} 38. Qd2 {[%clk 0:00:45.2]} 38... Bf8 {[%clk 0:00:20.4]} 39.
Nf6+ {[%clk 0:00:35.3]} 39... Kg7 {[%clk 0:00:20.4]} 40. Ne8+ {[%clk 0:00:19]}
40... Kh7 {[%clk 0:00:18.5]} 41. Nf6+ {[%clk 0:00:12.5]} 41... Kg7 {[%clk
0:00:18.6]} 42. Nd5 {[%clk 0:00:12.1]} 42... Qa7+ {[%clk 0:00:09.9]} 43. Kh2
{[%clk 0:00:10.3]} 43... Qd4 {[%clk 0:00:10.8]} 44. Qxd4 {[%clk 0:00:08.7]}
44... exd4 {[%clk 0:00:11.7]} 45. b5 {[%clk 0:00:08.4]} 45... Bd6+ {[%clk
0:00:10.4]} 46. Kg1 {[%clk 0:00:08.3]} 46... Kf7 {[%clk 0:00:08.6]} 47. Kf1
{[%clk 0:00:07.9]} 47... Ke6 {[%clk 0:00:09.1]} 48. Nb6 {[%clk 0:00:08.2]} 48...
c3 {[%clk 0:00:07.5]} 49. bxc3 {[%clk 0:00:08.7]} 49... dxc3 {[%clk 0:00:08.4]}
50. Ke2 {[%clk 0:00:09.1]} 50... Bc5 {[%clk 0:00:02.7]} 51. Na4 {[%clk
0:00:08.5]} 51... Bb4 {[%clk 0:00:02.8]} 52. Kd3 {[%clk 0:00:08.7]} 52... Kd5
{[%clk 0:00:03.1]} 53. Nxc3+ {[%clk 0:00:06.8]} 53... Kc5 {[%clk 0:00:03.1]} 54.
b6 {[%clk 0:00:06.5]} 54... Ba5 {[%clk 0:00:02.1]} 55. b7 {[%clk 0:00:06.4]}
55... Bc7 {[%clk 0:00:03]} 56. Ke4 {[%clk 0:00:05]} 56... Kc6 {[%clk 0:00:03.5]}
57. Nd5 {[%clk 0:00:05.5]} 57... Bb8 {[%clk 0:00:03.8]} 58. Ne7+ {[%clk
0:00:05.9]} 58... Kxb7 {[%clk 0:00:04.5]} 59. Nxg6 {[%clk 0:00:06.7]} 59... Kc6
{[%clk 0:00:05.4]} 60. f4 {[%clk 0:00:07.3]} 60... Kd7 {[%clk 0:00:06]} 61. f5
{[%clk 0:00:07.6]} 61... Ke8 {[%clk 0:00:06.6]} 62. g4 {[%clk 0:00:08]} 62...
Kf7 {[%clk 0:00:07.3]} 63. h4 {[%clk 0:00:08.3]} 63... Kf6 {[%clk 0:00:07.5]}
64. Nf4 {[%clk 0:00:07.6]} 64... Kf7 {[%clk 0:00:05.4]} 65. Nh5 {[%clk
0:00:07.5]} 65... Ba7 {[%clk 0:00:04.5]} 66. Kf3 {[%clk 0:00:06.9]} 66... Bc5
{[%clk 0:00:02.9]} 67. g5 {[%clk 0:00:07.3]} 67... Be7 {[%clk 0:00:03.1]} 68.
Kg4 {[%clk 0:00:07.5]} 68... hxg5 {[%clk 0:00:02.8]} 69. hxg5 {[%clk 0:00:07.7]}
69... Bd8 {[%clk 0:00:03.7]} 70. g6+ {[%clk 0:00:08]} 70... Kf8 {[%clk
0:00:04.6]} 71. f6 {[%clk 0:00:08.1]} 71... Ba5 {[%clk 0:00:03.6]} 72. Kf5
{[%clk 0:00:08.3]} 72... Bb4 {[%clk 0:00:03.6]} 73. Ke6 {[%clk 0:00:08.4]} 73...
Kg8 {[%clk 0:00:03.7]} 74. f7+ {[%clk 0:00:08.2]} 74... Kh8 {[%clk 0:00:03.5]}
75. g7+ {[%clk 0:00:08.6]} 75... Kh7 {[%clk 0:00:04.1]} 76. g8=Q+ {[%clk
0:00:08.9]} 76... Kh6 {[%clk 0:00:04.4]} 77. Qg7+ {[%clk 0:00:09.2]} 77... Kxh5
{[%clk 0:00:04.7]} 78. f8=Q {[%clk 0:00:09.3]} 78... Be7 {[%clk 0:00:02.5]} 79.
Qfh8# {[%clk 0:00:06.2]} 1-0

[Event "Early-Titled-Tuesday-Blitz-January-23-2024"]
[Site "Chess.com"]
[Date "2024.01.23"]
[Round "2"]
[White "vugarrasulov"]
[Black "Reality-Stone"]
[Result "1/2-1/2"]
[WhiteElo "2935"]
[BlackElo "2616"]
[TimeControl "180+1"]
[EndTime "8:19:11 PST"]
[Termination "Game drawn - insufficient material"]

1. e4 {[%clk 0:03:00.9]} 1... c5 {[%clk 0:02:57.4]} 2. Nf3 {[%clk 0:03:01.1]}
2... d6 {[%clk 0:02:57.5]} 3. Bc4 {[%clk 0:03:01.3]} 3... Nf6 {[%clk 0:02:55.8]}
4. d3 {[%clk 0:03:01.6]} 4... g6 {[%clk 0:02:54.1]} 5. O-O {[%clk 0:02:59.8]}
5... Bg7 {[%clk 0:02:54.5]} 6. Bb3 {[%clk 0:03:00.2]} 6... O-O {[%clk
0:02:53.2]} 7. c3 {[%clk 0:03:00.3]} 7... e6 {[%clk 0:02:44.6]} 8. Re1 {[%clk
0:03:00.4]} 8... b6 {[%clk 0:02:44.6]} 9. Nbd2 {[%clk 0:02:59.7]} 9... Bb7
{[%clk 0:02:44.2]} 10. Nf1 {[%clk 0:02:58.4]} 10... Nbd7 {[%clk 0:02:36.8]} 11.
Ng3 {[%clk 0:02:58.4]} 11... Rc8 {[%clk 0:02:36.5]} 12. Bf4 {[%clk 0:02:56.3]}
12... Qe7 {[%clk 0:02:34.1]} 13. d4 {[%clk 0:02:53]} 13... cxd4 {[%clk
0:02:31.7]} 14. cxd4 {[%clk 0:02:53.9]} 14... e5 {[%clk 0:02:30.9]} 15. dxe5
{[%clk 0:02:50.8]} 15... dxe5 {[%clk 0:02:31.8]} 16. Bg5 {[%clk 0:02:43.5]}
16... h6 {[%clk 0:02:29]} 17. Bxf6 {[%clk 0:02:39.6]} 17... Nxf6 {[%clk
0:02:29.9]} 18. Rc1 {[%clk 0:02:34.2]} 18... Rfd8 {[%clk 0:02:26.2]} 19. Rxc8
{[%clk 0:02:32.9]} 19... Rxc8 {[%clk 0:02:21.8]} 20. h3 {[%clk 0:02:33.1]} 20...
Nd7 {[%clk 0:02:09.4]} 21. Bd5 {[%clk 0:02:29.8]} 21... Nc5 {[%clk 0:02:07.1]}
22. Bxb7 {[%clk 0:02:27.9]} 22... Qxb7 {[%clk 0:02:08]} 23. Qd6 {[%clk
0:02:18.3]} 23... Qc6 {[%clk 0:01:52.9]} 24. Qxc6 {[%clk 0:02:12.1]} 24... Rxc6
{[%clk 0:01:53.8]} 25. Rd1 {[%clk 0:02:11.5]} 25... Ne6 {[%clk 0:01:47.8]} 26.
Ne2 {[%clk 0:02:02]} 26... Nd4 {[%clk 0:01:35.6]} 27. Nexd4 {[%clk 0:01:58.6]}
27... exd4 {[%clk 0:01:36.5]} 28. Ne1 {[%clk 0:01:58.3]} 28... b5 {[%clk
0:01:30.9]} 29. Kf1 {[%clk 0:01:57.8]} 29... f5 {[%clk 0:01:21.1]} 30. exf5
{[%clk 0:01:56.6]} 30... gxf5 {[%clk 0:01:22]} 31. Ke2 {[%clk 0:01:56.4]} 31...
Kf7 {[%clk 0:01:21.8]} 32. Kd3 {[%clk 0:01:56.1]} 32... b4 {[%clk 0:01:15.4]}
33. Nc2 {[%clk 0:01:54.1]} 33... a5 {[%clk 0:01:04.8]} 34. Rd2 {[%clk 0:01:54]}
34... f4 {[%clk 0:00:53.1]} 35. Ke4 {[%clk 0:01:44.3]} 35... d3 {[%clk
0:00:50.7]} 36. Nd4 {[%clk 0:01:29.8]} 36... Rc4 {[%clk 0:00:27.9]} 37. Rxd3
{[%clk 0:01:30]} 37... b3 {[%clk 0:00:28.2]} 38. axb3 {[%clk 0:01:28.8]} 38...
Rb4 {[%clk 0:00:28.8]} 39. Kd5 {[%clk 0:01:25.1]} 39... Kg6 {[%clk 0:00:23.7]}
40. Nc6 {[%clk 0:01:21.6]} 40... Rb5+ {[%clk 0:00:21.7]} 41. Kc4 {[%clk
0:01:21.6]} 41... Rg5 {[%clk 0:00:21.9]} 42. g3 {[%clk 0:01:19.7]} 42... Bxb2
{[%clk 0:00:20.1]} 43. gxf4 {[%clk 0:01:17.1]} 43... Rh5 {[%clk 0:00:20.1]} 44.
f5+ {[%clk 0:00:59]} 44... Kf6 {[%clk 0:00:18.6]} 45. Rd6+ {[%clk 0:00:57.9]}
45... Kf7 {[%clk 0:00:18.3]} 46. Rd5 {[%clk 0:00:51.3]} 46... Rxh3 {[%clk
0:00:18.1]} 47. Rxa5 {[%clk 0:00:51.7]} 47... Rf3 {[%clk 0:00:17.2]} 48. Ne5+
{[%clk 0:00:49.5]} 48... Bxe5 {[%clk 0:00:15.9]} 49. Rxe5 {[%clk 0:00:50.4]}
49... Rxf2 {[%clk 0:00:16.4]} 50. b4 {[%clk 0:00:50.2]} 50... h5 {[%clk
0:00:15.1]} 51. b5 {[%clk 0:00:50]} 51... Kf6 {[%clk 0:00:13.8]} 52. Re8 {[%clk
0:00:48.3]} 52... h4 {[%clk 0:00:12.8]} 53. Rh8 {[%clk 0:00:45.1]} 53... Kg5
{[%clk 0:00:12.2]} 54. b6 {[%clk 0:00:44.5]} 54... Rf4+ {[%clk 0:00:04.3]} 55.
Kc3 {[%clk 0:00:25.1]} 55... Rf3+ {[%clk 0:00:04.6]} 56. Kd4 {[%clk 0:00:25]}
56... Rf4+ {[%clk 0:00:04.4]} 57. Kc5 {[%clk 0:00:20.1]} 57... Rxf5+ {[%clk
0:00:04.7]} 58. Kc6 {[%clk 0:00:20.8]} 58... Rf6+ {[%clk 0:00:03.9]} 59. Kb5
{[%clk 0:00:21.1]} 59... Rf5+ {[%clk 0:00:04.2]} 60. Kc4 {[%clk 0:00:18.5]}
60... Rf4+ {[%clk 0:00:04.2]} 61. Kc5 {[%clk 0:00:18.9]} 61... Rf5+ {[%clk
0:00:04.7]} 62. Kc6 {[%clk 0:00:18.8]} 62... Rf6+ {[%clk 0:00:05.3]} 63. Kc7
{[%clk 0:00:17]} 63... Rf7+ {[%clk 0:00:05.8]} 64. Kc8 {[%clk 0:00:15.8]} 64...
Kg4 {[%clk 0:00:05.5]} 65. Rg8+ {[%clk 0:00:16.1]} 65... Kf3 {[%clk 0:00:04.8]}
66. Rg1 {[%clk 0:00:14.5]} 66... Kf2 {[%clk 0:00:04.3]} 67. Rh1 {[%clk
0:00:07.2]} 67... Kg3 {[%clk 0:00:04.7]} 68. b7 {[%clk 0:00:07.9]} 68... Rxb7
{[%clk 0:00:04.3]} 69. Kxb7 {[%clk 0:00:08.8]} 69... h3 {[%clk 0:00:05.2]} 70.
Rxh3+ {[%clk 0:00:09.5]} 70... Kxh3 {[%clk 0:00:05.6]} 1/2-1/2

[Event "Early-Titled-Tuesday-Blitz-January-23-2024"]
[Site "Chess.com"]
[Date "2024.01.23"]
[Round "2"]
[White "FLYD"]
[Black "kingofthenil"]
[Result "0-1"]
[WhiteElo "2086"]
[BlackElo "2661"]
[TimeControl "180+1"]
[EndTime "8:19:12 PST"]
[Termination "kingofthenil won by resignation"]

1. e4 {[%clk 0:03:00.9]} 1... d6 {[%clk 0:02:59.9]} 2. d4 {[%clk 0:03:00.2]}
2... Nf6 {[%clk 0:02:59.3]} 3. Nc3 {[%clk 0:03:00.9]} 3... e5 {[%clk 0:02:59.2]}
4. Nf3 {[%clk 0:02:58.3]} 4... exd4 {[%clk 0:02:59.2]} 5. Nxd4 {[%clk
0:02:56.3]} 5... Nc6 {[%clk 0:02:59.3]} 6. Bb5 {[%clk 0:02:54.6]} 6... Bd7
{[%clk 0:02:58.7]} 7. Bxc6 {[%clk 0:02:53.6]} 7... bxc6 {[%clk 0:02:58.6]} 8.
O-O {[%clk 0:02:52.7]} 8... Be7 {[%clk 0:02:56.9]} 9. Qf3 {[%clk 0:02:51.1]}
9... Ng4 {[%clk 0:02:39]} 10. Bf4 {[%clk 0:02:36.7]} 10... Bf6 {[%clk
0:02:25.8]} 11. Rad1 {[%clk 0:01:47.8]} 11... Ne5 {[%clk 0:02:21.4]} 12. Bxe5
{[%clk 0:01:43.9]} 12... Bxe5 {[%clk 0:02:22.3]} 13. Nf5 {[%clk 0:01:42.1]}
13... O-O {[%clk 0:02:15.4]} 14. Ne2 {[%clk 0:01:33]} 14... g6 {[%clk
0:02:11.3]} 15. Ne3 {[%clk 0:01:28.1]} 15... Bxb2 {[%clk 0:02:00.1]} 16. Rb1
{[%clk 0:01:12.5]} 16... Bg7 {[%clk 0:01:58.8]} 17. Rfd1 {[%clk 0:01:09.8]}
17... Qg5 {[%clk 0:01:58.3]} 18. Rb7 {[%clk 0:01:04.5]} 18... Rfc8 {[%clk
0:01:57.4]} 19. Rdb1 {[%clk 0:01:01.2]} 19... Be6 {[%clk 0:01:57.2]} 20. a3
{[%clk 0:00:52.5]} 20... h5 {[%clk 0:01:56.8]} 21. Nf4 {[%clk 0:00:48.3]} 21...
Ba2 {[%clk 0:01:53.5]} 22. Rd1 {[%clk 0:00:46.9]} 22... Be5 {[%clk 0:01:42.7]}
23. Nd3 {[%clk 0:00:42.5]} 23... Bc3 {[%clk 0:01:40.7]} 24. Nb4 {[%clk 0:00:41]}
24... Bxb4 {[%clk 0:01:29.9]} 25. axb4 {[%clk 0:00:41.9]} 25... Be6 {[%clk
0:01:24.8]} 26. c4 {[%clk 0:00:39.3]} 26... a5 {[%clk 0:01:24]} 27. b5 {[%clk
0:00:31.2]} 27... cxb5 {[%clk 0:01:17.7]} 28. Rxb5 {[%clk 0:00:31.2]} 28... Qe7
{[%clk 0:01:06.7]} 29. Nd5 {[%clk 0:00:28.4]} 29... Bxd5 {[%clk 0:01:06.2]} 30.
cxd5 {[%clk 0:00:28.6]} 30... c6 {[%clk 0:01:03.5]} 31. dxc6 {[%clk 0:00:26.6]}
31... Rxc6 {[%clk 0:01:04.4]} 32. e5 {[%clk 0:00:23.8]} 32... Raa6 {[%clk
0:00:57.1]} 33. exd6 {[%clk 0:00:18.8]} 33... Rxd6 {[%clk 0:00:58]} 34. Rf1
{[%clk 0:00:15.9]} 34... Rd8 {[%clk 0:00:49.8]} 35. h3 {[%clk 0:00:15.9]} 35...
a4 {[%clk 0:00:48.8]} 36. Ra1 {[%clk 0:00:16.1]} 36... a3 {[%clk 0:00:48.5]} 37.
Qb3 {[%clk 0:00:14.6]} 37... Ra7 {[%clk 0:00:44.6]} 38. Rb6 {[%clk 0:00:14.5]}
38... Rda8 {[%clk 0:00:37]} 39. Rxg6+ {[%clk 0:00:14.6]} 39... Kf8 {[%clk
0:00:37.4]} 40. Rb6 {[%clk 0:00:14.7]} 40... a2 {[%clk 0:00:35.5]} 41. Qc3
{[%clk 0:00:15.1]} 41... Qg5 {[%clk 0:00:21.9]} 42. Qh8+ {[%clk 0:00:13.9]}
42... Qg8 {[%clk 0:00:22.3]} 43. Qxh5 {[%clk 0:00:12.8]} 43... Qg7 {[%clk
0:00:22.6]} 44. Qd1 {[%clk 0:00:09.8]} 44... Kg8 {[%clk 0:00:18.1]} 45. Rb3
{[%clk 0:00:09]} 45... Ra3 {[%clk 0:00:18.3]} 46. Rxa3 {[%clk 0:00:08.4]} 46...
Rxa3 {[%clk 0:00:18.8]} 47. Qd8+ {[%clk 0:00:08.5]} 47... Kh7 {[%clk 0:00:17.7]}
48. Qh4+ {[%clk 0:00:08.4]} 48... Qh6 {[%clk 0:00:17.5]} 49. Qxh6+ {[%clk
0:00:08.2]} 49... Kxh6 {[%clk 0:00:18.4]} 50. Kf1 {[%clk 0:00:09.1]} 50... Kg5
{[%clk 0:00:17.5]} 51. Ke2 {[%clk 0:00:09.6]} 51... Kf4 {[%clk 0:00:18.1]} 52.
g3+ {[%clk 0:00:09.9]} 52... Ke4 {[%clk 0:00:18.2]} 53. f3+ {[%clk 0:00:09.3]}
53... Kd4 {[%clk 0:00:17.2]} 54. h4 {[%clk 0:00:09.8]} 54... Kc3 {[%clk
0:00:15]} 55. h5 {[%clk 0:00:09.4]} 55... Kb2 {[%clk 0:00:12.9]} 56. Rxa2+
{[%clk 0:00:08]} 56... Rxa2 {[%clk 0:00:13.8]} 57. Ke3 {[%clk 0:00:08.4]} 57...
Kc3 {[%clk 0:00:14.7]} 58. Kf4 {[%clk 0:00:08.5]} 58... Kd4 {[%clk 0:00:13.1]}
59. g4 {[%clk 0:00:09]} 59... Rh2 {[%clk 0:00:10.4]} 60. Kf5 {[%clk 0:00:08.1]}
60... Kd5 {[%clk 0:00:08.2]} 61. f4 {[%clk 0:00:06.8]} 61... Rh4 {[%clk
0:00:05.9]} 62. Kg5 {[%clk 0:00:07]} 62... Rh3 {[%clk 0:00:04.5]} 63. Kf6 {[%clk
0:00:07.4]} 63... Rh4 {[%clk 0:00:04.7]} 64. g5 {[%clk 0:00:03.4]} 64... Rxf4+
{[%clk 0:00:03.6]} 65. Kg7 {[%clk 0:00:04]} 65... Ke6 {[%clk 0:00:03.7]} 66. h6
{[%clk 0:00:04.2]} 66... Rh4 {[%clk 0:00:02.9]} 67. h7 {[%clk 0:00:04.5]} 67...
Kf5 {[%clk 0:00:03.4]} 68. g6 {[%clk 0:00:03]} 68... fxg6 {[%clk 0:00:03.2]} 69.
h8=Q {[%clk 0:00:02.9]} 69... Rxh8 {[%clk 0:00:03.6]} 70. Kxh8 {[%clk
0:00:03.3]} 70... g5 {[%clk 0:00:04.5]} 0-1